[Event "Novoborska Sachova Corrida 2019"]
[Site "Novy Bor"]
[Date "2019.08.21"]
[Round "3.2"]
[White "Kriebel, Tadeas"]
[Black "Werle, Jan"]
[Result "1/2-1/2"]
[ECO "B47"]
[WhiteElo "2531"]
[BlackElo "2540"]
[Annotator "ChessBase"]
[PlyCount "72"]
[EventDate "2019.08.21"]
[EventCountry "CZE"]
[SourceTitle "playchess.com"]
[Source "ChessBase"]
[SourceQuality "1"]
[TimeControl "40/5400+30:1800+30"]

1. e4 {[%emt 1:10:14]} c5 {[%emt 1:10:11]} 2. Nf3 {[%emt 0:00:22]} e6 {[%emt 0:00:21]} 3. d4 {[%emt 0:00:22]} cxd4 {[%emt 0:00:22]} 4. Nxd4 {[%emt 0:00:21]} Nc6 {[%emt 0:00:21]} 5. Nc3 {[%emt 0:00:22]} Qc7 {[%emt 0:00:21]} 6. f4 {[%emt 0:00:26]} a6 {[%emt 0:00:48]} 7. Nxc6 {[%emt 0:00:25]} Qxc6 {[%emt 0:01:45]} 8. Bd3 {[%emt 0:00:25]} b5 {[%emt 0:00:41]} 9. Qe2 {[%emt 0:00:23]} Bb7 {[%emt 0:00:27]} 10. Bd2 {[%emt 0:00:24]} Bc5 {[%emt 0:02:12]} 11. a3 {[%emt 0:00:22]} Ne7 {[%emt 0:00:27]} 12. O-O-O {[%emt 0:00:25]} O-O {[%emt 0:01:01]} 13. h4 {[%emt 0:00:22]} b4 {[%emt 0:00:58]} 14. axb4 {[%emt 0:01:18]} Bxb4 {[%emt 0:00:22]} 15. h5 {[%emt 0:00:25]} Rfc8 {[%emt 0:01:31]} 16. Qg4 {[%emt 0:03:08]} f5 {[%emt 0:08:42]} 17. exf5 {[%emt 0:03:05]} exf5 {[%emt 0:00:21]} 18. Bxf5 {[%emt 0:00:23]} Nxf5 {[%emt 0:00:21]} 19. Qxf5 {[%emt 0:00:22]} Qe6 {[%emt 0:00:35]} 20. Qxe6+ {[%emt 0:01:23]} dxe6 {[%emt 0:00:21]} 21. h6 {[%emt 0:08:26]} Bf8 {[%emt 0:00:21]} 22. hxg7 {[%emt 0:00:34]} Bxg7 {[%emt 0:00:21]} 23. Rde1 {[%emt 0:00:28]} Bxg2 {[%emt 0:02:09]} 24. Rhg1 {[%emt 0:00:21]} Bh3 {[%emt 0:00:31]} 25. Ne4 {[%emt 0:00:47]} Bf5 {[%emt 0:01:22]} 26. Bc3 {[%emt 0:01:36]} Bg6 {[%emt 0:00:27]} 27. Bxg7 {[%emt 0:00:49]} Kxg7 {[%emt 0:00:22]} 28. c3 {[%emt 0:00:21]} Rc6 {[%emt 0:00:44]} 29. Ng5 {[%emt 0:00:50]} Kf6 {[%emt 0:00:35]} 30. Re5 {[%emt 0:00:52]} Rd8 {[%emt 0:01:48]} 31. Rh1 {[%emt 0:01:37]} h5 {[%emt 0:00:33]} 32. Ne4+ {[%emt 0:01:45]} Bxe4 {[%emt 0:00:22]} 33. Rxe4 {[%emt 0:00:21]} Rh8 {[%emt 0:00:53]} 34. Re5 {[%emt 0:00:32]} h4 {[%emt 0:00:24]} 35. Kd2 {[%emt 0:00:21]} h3 {[%emt 0:01:17]} 36. Re3 {[%emt 0:01:18]} Rc4 {[%emt 0:00:44]} 1/2-1/2

[Event "Novoborska Sachova Corrida 2019"]
[Site "Novy Bor"]
[Date "2019.08.21"]
[Round "4.2"]
[White "Werle, Jan"]
[Black "Kriebel, Tadeas"]
[Result "0-1"]
[ECO "D24"]
[WhiteElo "2540"]
[BlackElo "2531"]
[Annotator "ChessBase"]
[PlyCount "72"]
[EventDate "2019.08.21"]
[EventCountry "CZE"]
[SourceTitle "playchess.com"]
[Source "ChessBase"]
[SourceQuality "1"]
[TimeControl "40/5400+30:1800+30"]

1. d4 {[%emt 1:10:12]} Nf6 {[%emt 1:10:12]} 2. c4 {[%emt 0:00:22]} e6 {[%emt 0:00:22]} 3. Nf3 {[%emt 0:00:21]} d5 {[%emt 0:00:21]} 4. Nc3 {[%emt 0:00:23]} dxc4 {[%emt 0:00:23]} 5. e4 {[%emt 0:00:22]} b5 {[%emt 0:00:24]} 6. e5 {[%emt 0:00:31]} Nd5 {[%emt 0:00:22]} 7. Nxb5 {[%emt 0:00:34]} Nb6 {[%emt 0:00:22]} 8. Be2 {[%emt 0:00:54]} Bb7 {[%emt 0:00:29]} 9. O-O {[%emt 0:00:38]} Be7 {[%emt 0:00:22]} 10. Be3 {[%emt 0:02:30]} O-O {[%emt 0:01:17]} 11. Qc2 {[%emt 0:00:39]} Nc6 {[%emt 0:01:12]} 12. a3 {[%emt 0:00:49]} Na5 {[%emt 0:01:07]} 13. Rad1 {[%emt 0:00:37]} Qd7 {[%emt 0:01:16]} 14. Nc3 {[%emt 0:00:26]} h6 {[%emt 0:00:23]} 15. Nd2 {[%emt 0:01:48]} Rab8 {[%emt 0:00:23]} 16. Nde4 {[%emt 0:00:48]} Nd5 {[%emt 0:01:14]} 17. Ng3 {[%emt 0:04:50]} Nxe3 {[%emt 0:01:26]} 18. fxe3 {[%emt 0:00:22]} Bg5 {[%emt 0:00:24]} 19. Kh1 {[%emt 0:02:16]} Bxe3 {[%emt 0:00:35]} 20. Bf3 {[%emt 0:02:24]} Bxd4 {[%emt 0:03:37]} 21. Bxb7 {[%emt 0:00:29]} Rxb7 {[%emt 0:00:22]} 22. Nce4 {[%emt 0:03:14]} Qd5 {[%emt 0:02:23]} 23. Nh5 {[%emt 0:04:36]} Qxe5 {[%emt 0:01:13]} 24. Nef6+ {[%emt 0:01:01]} gxf6 {[%emt 0:00:21]} 25. Nxf6+ {[%emt 0:00:27]} Qxf6 {[%emt 0:00:22]} 26. Rxf6 {[%emt 0:00:21]} Bxf6 {[%emt 0:00:21]} 27. Qa4 {[%emt 0:00:22]} Rxb2 {[%emt 0:02:48]} 28. Qxa5 {[%emt 0:00:21]} c3 {[%emt 0:00:23]} 29. Rc1 {[%emt 0:01:25]} Bg5 {[%emt 0:03:09]} 30. Qxc3 {[%emt 0:00:33]} Bxc1 {[%emt 0:00:22]} 31. h4 {[%emt 0:00:32]} Rfb8 {[%emt 0:00:48]} 32. Qg3+ {[%emt 0:00:23]} Kf8 {[%emt 0:00:37]} 33. Qxc7 {[%emt 0:00:28]} R2b6 {[%emt 0:01:33]} 34. Kh2 {[%emt 0:00:39]} Bxa3 {[%emt 0:00:36]} 35. Qxa7 {[%emt 0:00:31]} Bd6+ {[%emt 0:00:29]} 36. Kh3 {[%emt 0:00:33]} h5 {[%emt 0:00:51]} 0-1

[Event "Novoborska Sachova Corrida 2019"]
[Site "Novy Bor"]
[Date "2019.08.22"]
[Round "5.1"]
[White "Van Wely, Loek"]
[Black "Nguyen, Thai Dai Van"]
[Result "1/2-1/2"]
[ECO "A22"]
[WhiteElo "2608"]
[BlackElo "2535"]
[Annotator "ChessBase"]
[PlyCount "219"]
[EventDate "2019.08.21"]
[EventCountry "CZE"]
[SourceTitle "playchess.com"]
[Source "ChessBase"]
[SourceQuality "1"]
[TimeControl "40/5400+30:1800+30"]

1. c4 {[%emt 0:00:00]} Nf6 {[%emt 0:00:00]} 2. Nc3 {[%emt 0:00:00]} e5 {[%emt 0:00:00]} 3. g3 {[%emt 0:00:00]} Bb4 {[%emt 0:00:00]} 4. e4 {[%emt 0:00:00]} Bxc3 {[%emt 0:00:00]} 5. dxc3 {[%emt 0:00:07]} d6 {[%emt 0:00:03]} 6. Qc2 {[%emt 0:01:41]} Nc6 {[%emt 0:02:32]} 7. Nf3 {[%emt 0:03:34]} Be6 {[%emt 0:02:55]} 8. Be3 {[%emt 0:12:34]} O-O {[%emt 0:06:45]} 9. h3 {[%emt 0:01:57]} h6 {[%emt 0:03:08]} 10. Rd1 {[%emt 0:07:52]} a6 {[%emt 0:11:54]} 11. b3 {[%emt 0:11:19]} Qd7 {[%emt 0:03:11]} 12. g4 {[%emt 0:05:17]} Qe8 {[%emt 0:21:05]} 13. Rg1 {[%emt 0:10:59]} Ne7 {[%emt 0:01:22]} 14. g5 {[%emt 0:01:51]} hxg5 {[%emt 0:00:34]} 15. Nxg5 {[%emt 0:00:38]} Ng6 {[%emt 0:06:46]} 16. Qe2 {[%emt 0:04:10]} Nf4 {[%emt 0:09:04]} 17. Bxf4 {[%emt 0:01:38]} exf4 {[%emt 0:00:05]} 18. Kd2 {[%emt 0:18:45]} Bd7 {[%emt 0:03:16]} 19. Qf3 {[%emt 0:02:15]} Qe5 {[%emt 0:00:16]} 20. Bd3 {[%emt 0:00:25]} g6 {[%emt 0:07:33]} 21. Qg2 {[%emt 0:02:10]} Bg4 {[%emt 0:08:25]} 22. Nxf7 {[%emt 0:01:18]} Kxf7 {[%emt 0:00:34]} 23. hxg4 {[%emt 0:00:13]} g5 {[%emt 0:00:02]} 24. Rh1 {[%emt 0:01:08]} Rh8 {[%emt 0:00:18]} 25. Kc2 {[%emt 0:00:42]} Kg7 {[%emt 0:01:27]} 26. b4 {[%emt 0:01:29]} a5 {[%emt 0:01:13]} 27. Rxh8 {[%emt 0:02:07]} Rxh8 {[%emt 0:00:41]} 28. a3 {[%emt 0:03:28]} Ra8 {[%emt 0:01:14]} 29. Kb3 {[%emt 0:00:59]} Qe8 {[%emt 0:02:58]} 30. Ra1 {[%emt 0:01:02]} Nd7 {[%emt 0:00:37]} 31. e5 {[%emt 0:00:22]} Nxe5 {[%emt 0:02:56]} 32. Qe4 {[%emt 0:01:27]} Qg6 {[%emt 0:01:02]} 33. Qxg6+ {[%emt 0:00:44]} Nxg6 {[%emt 0:00:02]} 34. Be4 {[%emt 0:01:22]} a4+ {[%emt 0:00:21]} 35. Kc2 {[%emt 0:00:07]} Re8 {[%emt 0:00:45]} 36. f3 {[%emt 0:00:41]} Ne5 {[%emt 0:00:49]} 37. Bxb7 {[%emt 0:01:14]} Nxc4 {[%emt 0:00:08]} 38. Kd3 {[%emt 0:00:31]} Ne5+ {[%emt 0:00:20]} 39. Kd4 {[%emt 0:00:32]} c6 {[%emt 0:00:48]} 40. Rf1 {[%emt 0:00:00]} Rh8 {[%emt 0:00:00]} 41. c4 {[%emt 0:03:44]} Rh2 {[%emt 0:04:40]} 42. b5 {[%emt 0:01:59]} Rd2+ {[%emt 0:02:35]} 43. Kc3 {[%emt 0:10:09]} Rd3+ {[%emt 0:00:22]} 44. Kc2 {[%emt 0:02:41]} cxb5 {[%emt 0:05:06]} 45. cxb5 {[%emt 0:00:14]} Rb3 {[%emt 0:00:04]} 46. Rb1 {[%emt 0:03:44]} Rxb1 {[%emt 0:00:31]} 47. Kxb1 {[%emt 0:00:05]} Nc4 {[%emt 0:00:54]} 48. Bc6 {[%emt 0:06:55]} Nxa3+ {[%emt 0:00:40]} 49. Kb2 {[%emt 0:00:06]} Nc4+ {[%emt 0:00:04]} 50. Kc3 {[%emt 0:00:04]} Nb6 {[%emt 0:01:21]} 51. Be4 {[%emt 0:00:22]} Kf6 {[%emt 0:00:30]} 52. Kb4 {[%emt 0:00:26]} Ke5 {[%emt 0:08:59]} 53. Bc2 {[%emt 0:00:07]} Kd4 {[%emt 0:01:56]} 54. Bxa4 {[%emt 0:00:07]} Nd5+ {[%emt 0:06:11]} 55. Ka5 {[%emt 0:00:43]} Kc5 {[%emt 0:00:05]} 56. Bd1 {[%emt 0:01:38]} Nb6 {[%emt 0:00:35]} 57. Be2 {[%emt 0:00:08]} d5 {[%emt 0:00:22]} 58. Ka6 {[%emt 0:00:34]} d4 {[%emt 0:00:36]} 59. Bf1 {[%emt 0:01:32]} Nd5 {[%emt 0:01:13]} 60. Ka7 {[%emt 0:00:23]} Nb6 {[%emt 0:02:13]} 61. Ka6 {[%emt 0:01:35]} Nd7 {[%emt 0:00:36]} 62. Ka7 {[%emt 0:01:24]} Ne5 {[%emt 0:02:22]} 63. b6 {[%emt 0:00:08]} d3 {[%emt 0:00:16]} 64. b7 {[%emt 0:00:22]} d2 {[%emt 0:00:12]} 65. Be2 {[%emt 0:00:04]} Nd7 {[%emt 0:00:58]} 66. Ka6 {[%emt 0:05:52]} Kb4 {[%emt 0:02:36]} 67. Ka7 {[%emt 0:00:17]} Kc5 {[%emt 0:01:29]} 68. Ka6 {[%emt 0:00:08]} Kc6 {[%emt 0:00:35]} 69. Ka7 {[%emt 0:00:40]} Kd5 {[%emt 0:00:36]} 70. Bd1 {[%emt 0:01:15]} Kd4 {[%emt 0:00:12]} 71. Ba4 {[%emt 0:00:40]} Ke3 {[%emt 0:00:17]} 72. Bd1 {[%emt 0:00:20]} Kf2 {[%emt 0:00:19]} 73. Ba4 {[%emt 0:00:09]} Kxf3 {[%emt 0:01:11]} 74. Bxd7 {[%emt 0:00:13]} d1=Q {[%emt 0:00:05]} 75. Bc6+ {[%emt 0:00:09]} Kxg4 {[%emt 0:00:26]} 76. b8=Q {[%emt 0:00:05]} Qa1+ {[%emt 0:00:51]} 77. Kb6 {[%emt 0:00:07]} Qd4+ {[%emt 0:00:10]} 78. Ka6 {[%emt 0:00:45]} Qa1+ {[%emt 0:00:16]} 79. Kb6 {[%emt 0:00:06]} Qd4+ {[%emt 0:00:12]} 80. Ka6 {[%emt 0:00:08]} f3 {[%emt 0:00:37]} 81. Bb5 {[%emt 0:01:41]} Qa1+ {[%emt 0:00:20]} 82. Kb6 {[%emt 0:00:40]} Qd4+ {[%emt 0:00:03]} 83. Ka6 {[%emt 0:00:14]} Qf6+ {[%emt 0:00:15]} 84. Ka5 {[%emt 0:00:19]} Qf4 {[%emt 0:00:17]} 85. Qb6 {[%emt 0:01:08]} Qd2+ {[%emt 0:00:30]} 86. Ka6 {[%emt 0:00:14]} Kg3 {[%emt 0:00:48]} 87. Qc7+ {[%emt 0:00:33]} Qf4 {[%emt 0:01:05]} 88. Qc3 {[%emt 0:00:07]} Qd6+ {[%emt 0:00:33]} 89. Bc6 {[%emt 0:00:27]} g4 {[%emt 0:00:34]} 90. Qe1+ {[%emt 0:00:06]} Kf4 {[%emt 0:00:18]} 91. Qc1+ {[%emt 0:00:11]} Kg3 {[%emt 0:00:30]} 92. Qe1+ {[%emt 0:01:48]} Kg2 {[%emt 0:00:06]} 93. Qe2+ {[%emt 0:00:41]} Kh3 {[%emt 0:00:07]} 94. Qf1+ {[%emt 0:00:21]} Kh4 {[%emt 0:00:10]} 95. Qe1+ {[%emt 0:00:23]} Kg5 {[%emt 0:00:38]} 96. Qe3+ {[%emt 0:00:15]} Kh4 {[%emt 0:00:39]} 97. Kb5 {[%emt 0:01:09]} Qd1 {[%emt 0:01:37]} 98. Qe7+ {[%emt 0:00:31]} Kh3 {[%emt 0:00:19]} 99. Qh7+ {[%emt 0:00:38]} Kg2 {[%emt 0:00:13]} 100. Qe4 {[%emt 0:00:34]} g3 {[%emt 0:01:12]} 101. Qe3 {[%emt 0:00:15]} Qf1+ {[%emt 0:00:12]} 102. Kb4 {[%emt 0:00:29]} Qb1+ {[%emt 0:01:06]} 103. Kc3 {[%emt 0:00:30]} Qa1+ {[%emt 0:00:05]} 104. Kb3 {[%emt 0:00:43]} Qd1+ {[%emt 0:00:31]} 105. Kc3 {[%emt 0:00:12]} Qf1 {[%emt 0:00:31]} 106. Kd2 {[%emt 0:00:46]} Qf2+ {[%emt 0:00:27]} 107. Kd3 {[%emt 0:00:05]} Qxe3+ {[%emt 0:00:55]} 108. Kxe3 {[%emt 0:00:05]} Kh2 {[%emt 0:00:04]} 109. Bxf3 {[%emt 0:00:05]} g2 {[%emt 0:00:04]} 110. Bxg2 {[%emt 0:00:05]} 1/2-1/2

[Event "Novoborska Sachova Corrida 2019"]
[Site "Novy Bor"]
[Date "2019.08.22"]
[Round "5.2"]
[White "Werle, Jan"]
[Black "Kriebel, Tadeas"]
[Result "0-1"]
[ECO "D24"]
[WhiteElo "2540"]
[BlackElo "2531"]
[Annotator "ChessBase"]
[PlyCount "78"]
[EventDate "2019.08.21"]
[EventCountry "CZE"]
[SourceTitle "playchess.com"]
[Source "ChessBase"]
[SourceQuality "1"]
[TimeControl "40/5400+30:1800+30"]

1. d4 {[%emt 0:00:00]} Nf6 {[%emt 0:00:00]} 2. c4 {[%emt 0:00:00]} e6 {[%emt 0:00:00]} 3. Nf3 {[%emt 0:00:00]} d5 {[%emt 0:00:00]} 4. Nc3 {[%emt 0:00:00]} dxc4 {[%emt 0:00:00]} 5. e4 {[%emt 0:00:00]} b5 {[%emt 0:00:07]} 6. e5 {[%emt 0:00:13]} Nd5 {[%emt 0:00:04]} 7. Nxb5 {[%emt 0:00:05]} Nb6 {[%emt 0:00:05]} 8. a4 {[%emt 0:01:07]} a6 {[%emt 0:00:39]} 9. Nc3 {[%emt 0:06:30]} a5 {[%emt 0:10:23]} 10. Be2 {[%emt 0:04:56]} Nc6 {[%emt 0:02:59]} 11. Bg5 {[%emt 0:05:31]} Qd7 {[%emt 0:01:56]} 12. O-O {[%emt 0:01:05]} Bb7 {[%emt 0:03:31]} 13. Nb5 {[%emt 0:09:04]} Be7 {[%emt 0:17:05]} 14. Qc1 {[%emt 0:09:33]} Bxg5 {[%emt 0:01:58]} 15. Qxg5 {[%emt 0:04:08]} O-O {[%emt 0:05:41]} 16. Rfc1 {[%emt 0:14:16]} Na7 {[%emt 0:12:42]} 17. Na3 {[%emt 0:08:36]} Bd5 {[%emt 0:02:16]} 18. Qh4 {[%emt 0:01:50]} Nc6 {[%emt 0:00:42]} 19. Nc2 {[%emt 0:09:08]} Rad8 {[%emt 0:06:17]} 20. Nd2 {[%emt 0:07:11]} f6 {[%emt 0:10:32]} 21. exf6 {[%emt 0:01:46]} Rxf6 {[%emt 0:00:41]} 22. f3 {[%emt 0:02:03]} Rdf8 {[%emt 0:02:52]} 23. Rd1 {[%emt 0:03:11]} Ne7 {[%emt 0:03:13]} 24. Ne3 {[%emt 0:01:41]} Ng6 {[%emt 0:00:06]} 25. Qf2 {[%emt 0:00:13]} Nf4 {[%emt 0:00:43]} 26. Kh1 {[%emt 0:02:04]} Rg6 {[%emt 0:01:40]} 27. Bf1 {[%emt 0:00:59]} Qe7 {[%emt 0:02:45]} 28. Qe1 {[%emt 0:04:51]} Qg5 {[%emt 0:01:30]} 29. Qf2 {[%emt 0:00:11]} Qh5 {[%emt 0:01:23]} 30. Ra3 {[%emt 0:01:51]} Nh3 {[%emt 0:05:21]} 31. Qe1 {[%emt 0:01:20]} Bxf3 {[%emt 0:01:08]} 32. Nxf3 {[%emt 0:00:06]} Qxf3 {[%emt 0:00:23]} 33. Rd2 {[%emt 0:01:26]} Nf2+ {[%emt 0:01:59]} 34. Kg1 {[%emt 0:00:02]} Nh3+ {[%emt 0:00:27]} 35. Kh1 {[%emt 0:00:03]} Qe4 {[%emt 0:01:16]} 36. Re2 {[%emt 0:01:21]} Rgf6 {[%emt 0:00:40]} 37. Ra1 {[%emt 0:00:09]} Nf2+ {[%emt 0:00:48]} 38. Kg1 {[%emt 0:00:03]} Qxd4 {[%emt 0:00:34]} 39. Qxa5 {[%emt 0:00:30]} Nd5 {[%emt 0:00:28]} 0-1

[Event "Novoborska Sachova Corrida 2019"]
[Site "Novy Bor"]
[Date "2019.08.23"]
[Round "6.2"]
[White "Kriebel, Tadeas"]
[Black "Werle, Jan"]
[Result "1/2-1/2"]
[ECO "B43"]
[WhiteElo "2531"]
[BlackElo "2540"]
[Annotator "ChessBase"]
[PlyCount "86"]
[EventDate "2019.08.21"]
[EventCountry "CZE"]
[SourceTitle "playchess.com"]
[Source "ChessBase"]
[SourceQuality "1"]
[TimeControl "40/5400+30:1800+30"]

1. e4 {[%emt 0:00:00]} c5 {[%emt 0:00:00]} 2. Nf3 {[%emt 0:00:00]} e6 {[%emt 0:00:00]} 3. d4 {[%emt 0:00:00]} cxd4 {[%emt 0:00:00]} 4. Nxd4 {[%emt 0:00:00]} a6 {[%emt 0:00:00]} 5. Nc3 {[%emt 0:00:03]} Qc7 {[%emt 0:00:03]} 6. Bd3 {[%emt 0:02:32]} Nf6 {[%emt 0:00:25]} 7. Qe2 {[%emt 0:02:10]} d6 {[%emt 0:02:42]} 8. g4 {[%emt 0:02:19]} Nc6 {[%emt 0:02:27]} 9. Nb3 {[%emt 0:12:03]} Be7 {[%emt 0:00:42]} 10. g5 {[%emt 0:08:57]} Nd7 {[%emt 0:00:05]} 11. Be3 {[%emt 0:00:14]} b5 {[%emt 0:01:03]} 12. O-O-O {[%emt 0:01:51]} b4 {[%emt 0:04:21]} 13. Na4 {[%emt 0:06:47]} Nce5 {[%emt 0:01:13]} 14. Nd2 {[%emt 0:04:00]} Bb7 {[%emt 0:09:26]} 15. f4 {[%emt 0:00:54]} Nxd3+ {[%emt 0:01:09]} 16. Qxd3 {[%emt 0:00:06]} Bc6 {[%emt 0:03:24]} 17. b3 {[%emt 0:00:15]} Bxa4 {[%emt 0:01:07]} 18. bxa4 {[%emt 0:00:05]} O-O {[%emt 0:00:49]} 19. Nb3 {[%emt 0:04:40]} Rfc8 {[%emt 0:05:30]} 20. Kb1 {[%emt 0:00:20]} Nb6 {[%emt 0:06:20]} 21. Bxb6 {[%emt 0:01:12]} Qxb6 {[%emt 0:00:08]} 22. a5 {[%emt 0:03:42]} Qb7 {[%emt 0:01:20]} 23. h4 {[%emt 0:08:29]} Rc3 {[%emt 0:00:31]} 24. Qe2 {[%emt 0:00:09]} Rac8 {[%emt 0:00:32]} 25. Rd2 {[%emt 0:00:19]} Qa7 {[%emt 0:17:04]} 26. Re1 {[%emt 0:04:22]} Rg3 {[%emt 0:02:58]} 27. Rd3 {[%emt 0:03:18]} Rg1 {[%emt 0:01:36]} 28. Rxg1 {[%emt 0:00:10]} Qxg1+ {[%emt 0:00:04]} 29. Rd1 {[%emt 0:00:08]} Qa7 {[%emt 0:00:38]} 30. f5 {[%emt 0:01:47]} Qc7 {[%emt 0:03:34]} 31. fxe6 {[%emt 0:10:37]} fxe6 {[%emt 0:00:05]} 32. Nd4 {[%emt 0:00:26]} Qc4 {[%emt 0:10:11]} 33. Qxc4 {[%emt 0:00:24]} Rxc4 {[%emt 0:00:04]} 34. Nxe6 {[%emt 0:00:05]} Rxe4 {[%emt 0:00:34]} 35. Nc7 {[%emt 0:00:06]} Rxh4 {[%emt 0:01:43]} 36. Nxa6 {[%emt 0:00:13]} Bd8 {[%emt 0:10:15]} 37. Rxd6 {[%emt 0:05:46]} Bxa5 {[%emt 0:00:05]} 38. Kb2 {[%emt 0:05:08]} Rc4 {[%emt 0:03:24]} 39. Rd5 {[%emt 0:00:53]} Bb6 {[%emt 0:00:07]} 40. Kb3 {[%emt 0:00:00]} Rc3+ {[%emt 0:00:00]} 41. Kb2 {[%emt 0:05:49]} Rc4 {[%emt 0:01:33]} 42. Kb3 {[%emt 0:00:07]} Rc3+ {[%emt 0:00:36]} 43. Kb2 {[%emt 0:00:13]} Rc4 {[%emt 0:00:11]} 1/2-1/2